fUSD/lending_fUSD_20260405
["ID","MTS","AMOUNT","RATE_DAILY","PERIOD"]
[419856392,1775423440375,-156453.11073935,0.00012951,2]
[419856393,1775423440386,-191.56809759,0.00012972,2]
[419856394,1775423440398,-22239.19362513,0.00012973,2]
[419856395,1775423440408,-5651.24226969,0.00013,2]
[419856396,1775423440418,-1811.5322899,0.00013,15]
[419856397,1775423440428,-22083.80448431,0.00013023,2]
[419856398,1775423440439,-4286.066,0.00013049,2]
[419856399,1775423440449,-159.707,0.00013049,2]
[419856400,1775423440458,-215.18255029,0.0001305,2]
[419856401,1775423440468,-167.80860423,0.0001305,2]
[419856402,1775423440478,-500.0,0.0001305,2]
[419856403,1775423440488,-500.0,0.0001305,2]
[419856404,1775423440498,-500.0,0.0001305,2]
[419856405,1775423440508,-500.0,0.0001305,2]
[419856406,1775423440517,-201.0885738,0.0001305,2]
[419856407,1775423440527,-500.0,0.0001305,2]
[419856408,1775423440537,-500.0,0.0001305,2]
[419856409,1775423440547,-224.66134988,0.0001305,2]
[419856410,1775423440557,-5390.67222516,0.0001305,2]
[419856411,1775423440568,-150.0,0.0001305,2]
[419856412,1775423440578,-200.0,0.00013107,2]
[419856413,1775423440588,-151.0,0.00013107,2]
[419856414,1775423440598,-151.0,0.00013107,2]
[419856415,1775423440608,-151.0,0.00013107,2]
[419856416,1775423440618,-151.0,0.00013107,2]
[419856417,1775423440628,-151.0,0.00013107,2]
[419856418,1775423440638,-151.0,0.00013107,2]
[419856419,1775423440648,-151.0,0.00013107,2]
[419856420,1775423440658,-151.0,0.00013107,2]
[419856421,1775423440669,-151.0,0.00013107,2]
[419856422,1775423440680,-151.0,0.00013107,2]
[419856423,1775423440691,-151.0,0.00013107,2]
[419856424,1775423440701,-151.0,0.00013107,2]
[419856425,1775423440712,-507.0,0.00013111,2]
[419856426,1775423440722,-166.66,0.00013123,2]
[419856427,1775423440733,-500.0,0.00013173,2]
[419856428,1775423440743,-1000.0,0.00013195,2]
[419856429,1775423440753,-22239.19362512,0.00013298,2]
[419856430,1775423440764,-22083.80448422,0.00013343,2]
[419856431,1775423440773,-500.0,0.00013343,2]
[419856432,1775423440784,-230.7,0.00013346,2]
[419856433,1775423440794,-1000.0,0.000135,2]
[419856435,1775423440806,-250.0,0.00013529,2]
[419856437,1775423440815,-4813.08560339,0.00013529,2]
[419856439,1775423440825,-381.77293359,0.00013529,2]
[419856441,1775423440834,-166.66,0.00013542,2]
[419856443,1775423440844,-500.0,0.00013617,2]
[419856445,1775423440854,-22239.19362512,0.00013623,2]
[419856447,1775423440864,-200.0,0.00013655,2]
[419856449,1775423440873,-22083.80448422,0.00013662,2]
[419856451,1775423440883,-423.46520535,0.00013698,2]
[419856453,1775423440892,-494.49776464,0.00013698,2]
[419856455,1775423440902,-500.0,0.00013698,2]
[419856457,1775423440911,-551.83212521,0.00013698,2]
[419856459,1775423440920,-500.0,0.00013698,2]
[419856461,1775423440930,-500.0,0.00013698,2]
[419856462,1775423440940,-500.0,0.00013698,2]
[419856463,1775423440949,-500.0,0.00013698,2]
[419856464,1775423440959,-500.0,0.00013698,2]
[419856465,1775423440969,-500.0,0.00013698,2]
[419856466,1775423440978,-500.0,0.00013698,2]
[419856467,1775423440988,-500.0,0.00013698,2]
[419856468,1775423440998,-500.0,0.00013698,2]
[419856469,1775423441008,-500.0,0.00013698,2]
[419856470,1775423441018,-500.0,0.00013698,2]
[419856471,1775423441028,-500.0,0.00013698,2]
[419856472,1775423441038,-500.0,0.00013698,2]
[419856473,1775423441048,-500.0,0.00013698,2]
[419856474,1775423441058,-500.0,0.00013698,2]
[419856475,1775423441068,-500.0,0.00013698,2]
[419856476,1775423441078,-500.0,0.00013698,2]
[419856477,1775423441088,-500.0,0.00013698,2]
[419856478,1775423441097,-500.0,0.00013698,2]
[419856479,1775423441107,-500.0,0.00013698,2]
[419856480,1775423441116,-500.0,0.00013698,2]
[419856481,1775423441126,-183.58723642,0.00013698,2]
[419856482,1775423441136,-500.0,0.00013698,2]
[419856483,1775423441147,-500.0,0.00013698,2]
[419856484,1775423441156,-500.0,0.00013698,2]
[419856485,1775423441167,-500.0,0.00013698,2]
[419856486,1775423441176,-500.0,0.00013698,2]
[419856487,1775423441185,-500.0,0.00013698,2]
[419856488,1775423441195,-500.0,0.00013698,2]
[419856489,1775423441206,-500.0,0.00013698,2]
[419856490,1775423441217,-500.0,0.00013698,2]
[419856491,1775423441228,-500.0,0.00013698,2]
[419856492,1775423441239,-500.0,0.00013698,2]
[419856493,1775423441250,-500.0,0.00013698,2]
[419856494,1775423441261,-500.0,0.00013698,2]
[419856495,1775423441272,-500.0,0.00013698,2]
[419856496,1775423441282,-500.0,0.00013698,2]
[419856497,1775423441292,-504.35317897,0.00013698,2]
[419856498,1775423441303,-500.0,0.00013698,2]
[419856499,1775423441315,-500.0,0.00013698,2]
[419856500,1775423441326,-500.0,0.00013698,2]
[419856501,1775423441336,-500.0,0.00013698,2]
[419856502,1775423441347,-500.0,0.00013698,2]
[419856503,1775423441357,-500.0,0.00013698,2]
[419856504,1775423441367,-500.0,0.00013698,2]
[419856505,1775423441376,-500.0,0.00013698,2]
[419856506,1775423441387,-500.0,0.00013698,2]
[419856507,1775423441397,-500.0,0.00013698,2]
[419856508,1775423441407,-500.0,0.00013698,2]
[419856509,1775423441416,-500.0,0.00013698,2]
[419856510,1775423441426,-500.0,0.00013698,2]
[419856511,1775423441436,-500.0,0.00013698,2]
[419856512,1775423441445,-500.0,0.00013698,2]
[419856513,1775423441455,-500.0,0.00013698,2]
[419856514,1775423441464,-500.0,0.00013698,2]
[419856515,1775423441474,-500.0,0.00013698,2]
[419856516,1775423441483,-500.0,0.00013698,2]
[419856517,1775423441493,-500.0,0.00013698,2]
[419856518,1775423441503,-500.0,0.00013698,2]
[419856519,1775423441513,-500.0,0.00013698,2]
[419856520,1775423441523,-500.0,0.00013698,2]
[419856521,1775423441534,-500.0,0.00013698,2]
[419856522,1775423441544,-500.0,0.00013698,2]
[419856523,1775423441554,-500.0,0.00013698,2]
[419856524,1775423441564,-500.0,0.00013698,2]
[419856525,1775423441574,-500.0,0.00013698,2]
[419856526,1775423441584,-500.0,0.00013698,2]
[419856527,1775423441593,-500.0,0.00013698,2]
[419856528,1775423441603,-500.0,0.00013698,2]
[419856529,1775423441612,-500.0,0.00013698,2]
[419856530,1775423441621,-500.0,0.00013698,2]
[419856531,1775423441632,-500.0,0.00013698,2]
[419856532,1775423441642,-500.0,0.00013698,2]
[419856533,1775423441654,-500.0,0.00013698,2]
[419856534,1775423441664,-500.0,0.00013698,2]
[419856535,1775423441680,-500.0,0.00013698,2]
[419856536,1775423441689,-500.0,0.00013698,2]
[419856537,1775423441698,-500.0,0.00013698,2]
[419856538,1775423441708,-500.0,0.00013698,2]
[419856539,1775423441717,-500.0,0.00013698,2]
[419856540,1775423441727,-500.0,0.00013698,2]
[419856541,1775423441736,-500.0,0.00013698,2]
[419856542,1775423441746,-500.0,0.00013698,2]
[419856543,1775423441755,-500.0,0.00013698,2]
[419856544,1775423441764,-500.0,0.00013698,2]
[419856545,1775423441774,-500.0,0.00013698,2]
[419856546,1775423441784,-500.0,0.00013698,2]
[419856547,1775423441793,-500.0,0.00013698,2]
[419856548,1775423441803,-500.0,0.00013698,2]
[419856549,1775423441812,-500.0,0.00013698,2]
[419856550,1775423441821,-500.0,0.00013698,2]
[419856551,1775423441831,-500.0,0.00013698,2]
[419856552,1775423441840,-500.0,0.00013698,2]
[419856553,1775423441850,-500.0,0.00013698,2]
[419856554,1775423441860,-500.0,0.00013698,2]
[419856555,1775423441870,-500.0,0.00013698,2]
[419856556,1775423441881,-500.0,0.00013698,2]
[419856557,1775423441890,-500.0,0.00013698,2]
[419856558,1775423441899,-500.0,0.00013698,2]
[419856559,1775423441908,-500.0,0.00013698,2]
[419856560,1775423441917,-500.0,0.00013698,2]
[419856561,1775423441927,-500.0,0.00013698,2]
[419856562,1775423441936,-500.0,0.00013698,2]
[419856563,1775423441946,-577.45498934,0.00013698,2]
[419856564,1775423441957,-500.0,0.00013698,2]
[419856565,1775423441966,-500.0,0.00013698,2]
[419856566,1775423441975,-500.0,0.00013698,2]
[419856567,1775423441986,-500.0,0.00013698,2]
[419856568,1775423441998,-500.0,0.00013698,2]
[419856569,1775423442007,-500.0,0.00013698,2]
[419856570,1775423442016,-500.0,0.00013698,2]
[419856571,1775423442025,-385.93623428,0.00013698,2]
[419856572,1775423442036,-500.0,0.00013698,2]
[419856573,1775423442048,-500.0,0.00013698,2]
[419856574,1775423442058,-500.0,0.00013698,2]
[419856575,1775423442067,-500.0,0.00013698,2]
[419856576,1775423442077,-500.0,0.00013698,2]
[419856577,1775423442086,-500.0,0.00013698,2]
[419856578,1775423442096,-500.0,0.00013698,2]
[419856579,1775423442105,-500.0,0.00013698,2]
[419856580,1775423442115,-500.0,0.00013698,2]
[419856581,1775423442125,-500.0,0.00013698,2]
[419856582,1775423442136,-500.0,0.00013698,2]
[419856583,1775423442147,-500.0,0.00013698,2]
[419856584,1775423442158,-500.0,0.00013698,2]
[419856585,1775423442169,-500.0,0.00013698,2]
[419856586,1775423442180,-500.0,0.00013698,2]
[419856587,1775423442190,-500.0,0.00013698,2]
[419856588,1775423442199,-500.0,0.00013698,2]
[419856589,1775423442209,-500.0,0.00013698,2]
[419856590,1775423442218,-500.0,0.00013698,2]
[419856591,1775423442227,-500.0,0.00013698,2]
[419856592,1775423442236,-500.0,0.00013698,2]
[419856593,1775423442245,-500.0,0.00013698,2]
[419856594,1775423442255,-500.0,0.00013698,2]
[419856595,1775423442265,-500.0,0.00013698,2]
[419856596,1775423442274,-500.0,0.00013698,2]
[419856597,1775423442284,-500.0,0.00013698,2]
[419856598,1775423442294,-500.0,0.00013698,2]
[419856599,1775423442303,-500.0,0.00013698,2]
[419856600,1775423442312,-500.0,0.00013698,2]
[419856601,1775423442321,-500.0,0.00013698,2]
[419856602,1775423442331,-500.0,0.00013698,2]
[419856603,1775423442340,-500.0,0.00013698,2]
[419856604,1775423442349,-500.0,0.00013698,2]
[419856605,1775423442358,-500.0,0.00013698,2]
[419856607,1775423442368,-500.0,0.00013698,2]
[419856608,1775423442377,-500.0,0.00013698,2]
[419856610,1775423442386,-500.0,0.00013698,2]
[419856612,1775423442396,-500.0,0.00013698,2]
[419856614,1775423442406,-500.0,0.00013698,2]
[419856616,1775423442415,-500.0,0.00013698,2]
[419856618,1775423442424,-150.0,0.00013699,2]
[419856620,1775423442434,-150.0,0.00013699,2]
[419856622,1775423442443,-150.0,0.00013699,2]
[419856624,1775423442452,-150.0,0.00013699,2]
[419856626,1775423442462,-150.0,0.00013699,2]
[419856628,1775423442471,-150.0,0.00013699,2]
[419856630,1775423442481,-150.0,0.00013699,2]
[419856632,1775423442490,-150.0,0.00013699,2]
[419856634,1775423442499,-200.0,0.00013699,2]
[419856636,1775423442508,-166.66,0.00013699,2]
[419856638,1775423442518,-5957.33,0.00013699,2]
[419856641,1775423442527,-476.08,0.00013699,2]
[419856643,1775423442536,-396.73,0.00013699,2]
[419856644,1775423442545,-330.61,0.00013699,2]
[419856651,1775423442903,-275.51,0.00013699,2]
[419856652,1775423442921,-229.59,0.00013699,2]
[419856653,1775423442931,-191.33,0.00013699,2]
[419856654,1775423442942,-159.44,0.00013699,2]
[419856655,1775423442953,-797.21,0.00013699,2]
[419856656,1775423442963,-156.68,0.00013699,2]
[419856658,1775423442973,-500.0,0.00013699,2]
[419856660,1775423442982,-633.93373005,0.00013699,2]
[419856661,1775423442994,-178.831115,0.00013702,2]
[419856662,1775423443003,-500.0,0.00013738,2]
[419856663,1775423443013,-500.0,0.00013738,2]
[419856664,1775423443022,-500.0,0.00013738,2]
[419856665,1775423443031,-500.0,0.00013738,2]
[419856666,1775423443042,-500.0,0.00013738,2]
[419856667,1775423443052,-500.0,0.00013738,2]
[419856668,1775423443061,-500.0,0.00013738,2]
[419856669,1775423443071,-1594.39,0.00013746,2]
[419856670,1775423443081,-500.0,0.00013767,2]
[419856671,1775423443090,-168.69935806,0.00013767,2]
[419856672,1775423443100,-500.0,0.00013767,2]
[419856673,1775423443110,-500.0,0.00013767,2]
[419856674,1775423443120,-202.64993829,0.00013767,2]
[419856676,1775423443130,-500.0,0.00013767,2]
[419856678,1775423443139,-210.98153295,0.00013767,2]
[419856680,1775423443149,-162.72924009,0.00013767,2]
[419856682,1775423443158,-500.0,0.0001378,2]
[419856684,1775423443167,-500.0,0.0001378,2]
[419856686,1775423443177,-500.0,0.0001378,2]
[419856688,1775423443187,-500.0,0.0001378,2]
[419856690,1775423443196,-500.0,0.0001378,2]
[419856692,1775423443205,-500.0,0.0001378,2]
[419856694,1775423443214,-403.93256284,0.0001378,2]
[419856696,1775423443224,-500.0,0.0001378,2]
[419856698,1775423443233,-500.0,0.0001378,2]
[419856700,1775423443243,-160.34417201,0.0001378,2]
[419856702,1775423443253,-500.0,0.0001378,2]
[419856704,1775423443262,-500.0,0.0001378,2]
[419856706,1775423443272,-598.99606082,0.0001378,2]
[419856708,1775423443281,-519.03182682,0.0001378,2]
[419856710,1775423443290,-161.91170216,0.0001378,2]
[419856712,1775423443299,-500.0,0.0001378,2]
[419856714,1775423443308,-500.0,0.0001378,2]
[419856715,1775423443318,-500.0,0.0001378,2]
[419856717,1775423443328,-500.0,0.0001378,2]
[419856718,1775423443337,-569.20510167,0.0001378,2]
[419856719,1775423443347,-500.0,0.0001378,2]
[419856720,1775423443356,-500.0,0.0001378,2]
[419856721,1775423443365,-518.73332026,0.0001378,2]
[419856722,1775423443375,-500.0,0.0001378,2]
[419856723,1775423443384,-312.74353669,0.0001378,2]
[419856724,1775423443394,-500.0,0.0001378,2]
[419856725,1775423443403,-515.7358709,0.0001378,2]
[419856726,1775423443412,-500.0,0.0001378,2]
[419856727,1775423443423,-2109.0,0.0001381,5]
[419856728,1775423443432,-166.66,0.00013836,2]
[419856729,1775423443441,-500.0,0.00013838,2]
[419856730,1775423443451,-500.0,0.00013838,2]
[419856731,1775423443460,-500.0,0.00013838,2]
[419856732,1775423443473,-500.0,0.00013844,2]
[419856733,1775423443482,-387.75,0.00013858,2]
[419856734,1775423443492,-500.0,0.00013891,2]
[419856735,1775423443501,-22239.19362512,0.00013949,2]
[419856736,1775423443511,-166.66,0.00013962,2]
[419856737,1775423443520,-150.0,0.00013973,2]
[419856738,1775423443530,-150.0,0.00013973,2]
[419856739,1775423443540,-150.0,0.00013973,2]
[419856740,1775423443550,-150.0,0.00013973,2]
[419856741,1775423443560,-150.0,0.00013973,2]
[419856742,1775423443570,-150.0,0.00013973,2]
[419856743,1775423443579,-166.66,0.00013973,2]
[419856744,1775423443589,-500.0,0.00013973,2]
[419856745,1775423443598,-22083.80448422,0.00013982,2]
[419856746,1775423443607,-1500.0,0.00014,2]
[419856747,1775423443617,-60000.0,0.00014006,2]
[419856748,1775423443627,-155.19654635,0.00014071,2]
[419856749,1775423443636,-500.0,0.00014085,2]
[419856750,1775423443645,-500.0,0.00014085,2]
[419856751,1775423443655,-500.0,0.00014085,2]
[419856752,1775423443664,-500.0,0.00014085,2]
[419856753,1775423443674,-500.0,0.00014085,2]
[419856754,1775423443683,-500.0,0.00014085,2]
[419856755,1775423443693,-150.0,0.000141,2]
[419856756,1775423443702,-160.0,0.00014102,7]
[419856757,1775423443712,-7326.703287,0.00014102,7]
[419856758,1775423443723,-14493.406575,0.00014102,7]
[419856759,1775423443732,-160.0,0.00014102,2]
[419856760,1775423443742,-4412.975178,0.00014102,2]
[419856761,1775423443752,-8665.950357,0.00014102,2]
[419856762,1775423443761,-507.0,0.00014109,2]
[419856763,1775423443771,-166.66,0.0001411,2]
[419856764,1775423443780,-255.0,0.00014159,2]
[419856765,1775423443789,-500.0,0.00014231,2]
[419856766,1775423443799,-500.0,0.00014231,2]
[419856767,1775423443808,-500.0,0.00014231,2]
[419856768,1775423443818,-1680.0,0.00014245,2]
[419856769,1775423443828,-166.66,0.00014247,2]
[419856770,1775423443838,-150.0,0.00014247,2]
[419856771,1775423443848,-150.0,0.00014247,2]
[419856772,1775423443858,-150.0,0.00014247,2]
[419856773,1775423443867,-150.0,0.00014247,2]
[419856774,1775423443877,-150.0,0.00014247,2]
[419856775,1775423443886,-150.0,0.00014247,2]
[419856776,1775423443895,-22239.19362512,0.00014274,2]
[419856777,1775423443905,-1000.0,0.00014285,2]
[419856778,1775423443915,-1000.0,0.00014285,2]
[419856779,1775423443925,-1000.0,0.00014285,2]
[419856780,1775423443935,-160.0,0.00014286,7]
[419856781,1775423443944,-1572.3601,0.00014286,7]
[419856782,1775423443954,-2984.720201,0.00014286,7]
[419856783,1775423443963,-22083.80448422,0.00014302,2]
[419856784,1775423443972,-160.0,0.00014308,2]
[419856785,1775423443982,-1491.337506,0.00014308,2]
[419856786,1775423443993,-2822.675013,0.00014308,2]
[419856787,1775423444002,-166.66,0.00014314,2]
[419856788,1775423444011,-1000.0,0.00014315,2]
[419856789,1775423444021,-1000.0,0.00014315,2]
[419856790,1775423444030,-445.18,0.00014316,2]
[419856791,1775423444040,-1000.0,0.00014328,2]
[419856792,1775423444049,-1000.0,0.00014328,2]
[419856793,1775423444059,-953.31303788,0.00014328,2]
[419856794,1775423444068,-1000.0,0.00014328,2]
[419856795,1775423444078,-1000.0,0.00014328,2]
[419856796,1775423444088,-1000.0,0.00014328,2]
[419856797,1775423444097,-1000.0,0.00014328,2]
[419856798,1775423444107,-1000.0,0.00014328,2]
[419856799,1775423444116,-1000.0,0.00014328,2]
[419856800,1775423444126,-1000.0,0.00014328,2]
[419856801,1775423444135,-1000.0,0.00014328,2]
[419856802,1775423444145,-1000.0,0.00014328,2]
[419856803,1775423444154,-418.3764967,0.00014328,2]
[419856804,1775423444163,-186.27125357,0.00014328,2]
[419856805,1775423444172,-166.66,0.00014381,2]
[419856806,1775423444182,-166.66,0.00014384,2]
[419856807,1775423444191,-5957.33,0.00014384,2]
[419856808,1775423444201,-1000.0,0.00014386,2]
[419856809,1775423444211,-1000.0,0.00014386,2]
[419856810,1775423444220,-1000.0,0.00014386,2]
[419856811,1775423444230,-10405.80591116,0.0001439,2]
[419856812,1775423444239,-1000.0,0.00014392,2]
[419856813,1775423444248,-150.0,0.000144,2]
[419856814,1775423444259,-150.0,0.000144,2]
[419856815,1775423444270,-150.0,0.000144,2]
[419856816,1775423444279,-150.0,0.000144,2]
[419856817,1775423444288,-150.0,0.000144,2]
[419856818,1775423444297,-150.0,0.000144,2]
[419856819,1775423444306,-150.0,0.000144,2]
[419856820,1775423444316,-150.0,0.000144,2]
[419856821,1775423444325,-150.0,0.000144,2]
[419856822,1775423444335,-150.0,0.000144,2]
[419856823,1775423444345,-150.0,0.000144,2]
[419856824,1775423444355,-150.0,0.000144,2]
[419856825,1775423444364,-150.0,0.000144,2]
[419856826,1775423444374,-150.0,0.000144,2]
[419856827,1775423444384,-150.0,0.00014429,2]
[419856828,1775423444394,-150.0,0.00014435,2]
[419856829,1775423444404,-150.0,0.00014436,2]
[419856830,1775423444413,-403.04138764,0.00014439,2]
[419856831,1775423444422,-150.0,0.00014446,2]
[419856832,1775423444431,-150.0,0.00014447,2]
[419856833,1775423444441,-150.0,0.00014447,2]
[419856834,1775423444451,-2000.0,0.00014447,2]
[419856835,1775423444460,-2000.0,0.00014447,2]
[419856836,1775423444469,-2000.0,0.00014447,2]
[419856837,1775423444478,-2000.0,0.00014447,2]
[419856838,1775423444487,-2000.0,0.00014447,2]
[419856839,1775423444497,-2000.0,0.00014447,2]
[419856840,1775423444506,-2000.0,0.00014447,2]
[419856841,1775423444515,-2000.0,0.00014447,2]
[419856842,1775423444525,-2000.0,0.00014447,2]
[419856843,1775423444534,-2000.0,0.00014447,2]
[419856844,1775423444543,-150.0,0.00014457,2]
[419856845,1775423444552,-150.0,0.0001447,2]
[419856846,1775423444562,-160.0,0.00014472,2]
[419856847,1775423444572,-150.0,0.00014473,2]
[419856848,1775423444581,-150.0,0.00014484,2]
[419856849,1775423444590,-150.0,0.00014486,2]
[419856850,1775423444600,-270.300797,0.00014491,4]
[419856851,1775423444609,-150.0,0.00014491,4]
[419856852,1775423444619,-150.0,0.00014491,2]
[419856853,1775423444628,-150.0,0.00014494,2]
[419856854,1775423444637,-150.0,0.00014494,2]
[419856855,1775423444647,-150.0,0.00014504,2]
[419856856,1775423444656,-9999.99,0.00014504,2]
[419856857,1775423444665,-150.99,0.00014504,2]
[419856858,1775423444675,-242.3116382,0.00014506,4]
[419856859,1775423444684,-173.0,0.00014506,4]
[419856860,1775423444693,-150.0,0.00014509,2]
[419856861,1775423444703,-150.0,0.00014514,2]
[419856862,1775423444712,-150.0,0.00014514,2]
[419856863,1775423444722,-150.0,0.00014537,2]
[419856864,1775423444732,-150.0,0.00014539,2]
[419856865,1775423444742,-150.0,0.00014541,2]
[419856866,1775423444751,-150.0,0.00014541,2]
[419856867,1775423444760,-150.0,0.00014543,2]
[419856868,1775423444771,-150.0,0.00014545,2]
[419856869,1775423444780,-150.0,0.0001456,2]
[419856870,1775423444790,-150.0,0.00014568,2]
[419856871,1775423444799,-150.0,0.00014571,2]
[419856872,1775423444808,-150.0,0.00014574,2]
[419856873,1775423444818,-1900.0,0.00014577,2]
[419856874,1775423444827,-1900.0,0.00014577,2]
[419856875,1775423444836,-1900.0,0.00014577,2]
[419856876,1775423444846,-1900.0,0.00014577,2]
[419856877,1775423444855,-1900.0,0.00014577,2]
[419856878,1775423444864,-1900.0,0.00014577,2]
[419856879,1775423444874,-1900.0,0.00014577,2]
[419856880,1775423444884,-1900.0,0.00014577,2]
[419856881,1775423444894,-1900.0,0.00014577,2]
[419856882,1775423444903,-1546.0,0.00014577,2]
[419856883,1775423444912,-150.0,0.00014582,2]
[419856884,1775423444922,-150.0,0.00014583,2]
[419856885,1775423444931,-150.0,0.00014588,2]
[419856886,1775423444940,-150.0,0.00014588,2]
[419856887,1775423444949,-22239.19362512,0.00014599,2]
[419856888,1775423444958,-150.0,0.000146,2]
[419856889,1775423444968,-1950.0,0.000146,2]
[419856890,1775423444976,-1950.0,0.000146,2]
[419856891,1775423444986,-1950.0,0.000146,2]
[419856892,1775423444995,-1950.0,0.000146,2]
[419856893,1775423445004,-1950.0,0.000146,2]
[419856894,1775423445013,-1950.0,0.000146,2]
[419856895,1775423445023,-1950.0,0.000146,2]
[419856896,1775423445032,-1950.0,0.000146,2]
[419856897,1775423445041,-1950.0,0.000146,2]
[419856898,1775423445051,-1751.0,0.000146,2]
[419856899,1775423445060,-150.0,0.00014609,2]
[419856900,1775423445069,-150.0,0.00014618,2]
[419856901,1775423445078,-22083.80448422,0.00014621,2]
[419856902,1775423445087,-230.7,0.00014626,2]
[419856903,1775423445097,-150.0,0.00014629,2]
[419856904,1775423445106,-150.0,0.00014629,2]
[419856905,1775423445115,-150.0,0.00014629,2]
[419856906,1775423445124,-150.0,0.00014635,2]
[419856907,1775423445133,-150.0,0.00014635,2]
[419856908,1775423445142,-150.0,0.00014643,2]
[419856909,1775423445151,-150.0,0.00014653,2]
[419856910,1775423445160,-150.0,0.00014655,2]
[419856911,1775423445169,-150.0,0.00014657,2]
[419856912,1775423445179,-150.0,0.00014674,2]
[419856913,1775423445188,-150.0,0.00014678,2]
[419856914,1775423445197,-150.0,0.00014682,2]
[419856915,1775423445206,-150.0,0.00014682,2]
[419856916,1775423445215,-150.0,0.00014686,2]
[419856917,1775423445224,-150.0,0.00014691,2]
[419856918,1775423445233,-150.0,0.00014713,2]
[419856919,1775423445242,-150.0,0.00014714,2]
[419856920,1775423445251,-150.0,0.0001472,2]
[419856921,1775423445261,-150.0,0.0001472,2]
[419856922,1775423445270,-150.0,0.00014727,2]
[419856923,1775423445279,-150.0,0.00014729,2]
[419856924,1775423445289,-150.0,0.00014729,2]
[419856925,1775423445298,-445.18938606,0.00014736,2]
[419856926,1775423445307,-150.0,0.00014737,2]
[419856927,1775423445317,-500.0,0.0001474,2]
[419856928,1775423445327,-150.0,0.00014743,2]
[419856929,1775423445336,-150.0,0.00014743,2]
[419856930,1775423445345,-150.0,0.00014748,2]
[419856931,1775423445355,-150.0,0.00014764,2]
[419856932,1775423445364,-150.0,0.00014766,2]
[419856933,1775423445374,-150.0,0.00014771,2]
[419856934,1775423445383,-150.0,0.00014776,2]
[419856935,1775423445392,-150.0,0.00014776,2]
[419856936,1775423445402,-500.0,0.00014782,2]
[419856937,1775423445411,-500.0,0.00014782,2]
[419856938,1775423445420,-500.50066882,0.00014782,2]
[419856939,1775423445430,-607.20051974,0.00014782,2]
[419856940,1775423445440,-500.0,0.00014782,2]
[419856941,1775423445449,-500.0,0.00014782,2]
[419856942,1775423445458,-500.0,0.00014782,2]
[419856943,1775423445468,-500.13152132,0.00014782,2]
[419856944,1775423445478,-164.79711181,0.00014782,2]
[419856945,1775423445487,-211.04857142,0.00014782,2]
[419856946,1775423445497,-163.60261744,0.00014782,2]
[419856947,1775423445506,-385.86149772,0.00014782,2]
[419856948,1775423445515,-500.0,0.00014782,2]
[419856949,1775423445525,-160.7467095,0.00014782,2]
[419856950,1775423445535,-150.0,0.00014783,2]
[419856951,1775423445544,-553.41835149,0.00014795,2]
[419856952,1775423445553,-150.0,0.000148,2]
[419856953,1775423445562,-150.0,0.000148,2]